Cogmind - Beta 10.2 @@@ ROGUE MODE // 2021.02.24 @ 20:46:50 Player: TheGreatBorealis Result: Destroyed by S-43 Plague with Heavy Machine Gun Performance ------------- Evolutions (9) 4500 Regions Visited (11) 2200 Robots Destroyed (88) 440 Value Destroyed (2797) 2797 Prototype IDs (13) 260 Alien Tech Used (0) 0 Bonus (39) 39 TOTAL SCORE: 10236 Bonus ------- High Alert Combat Kills 39 Cogmind --------- Core Integrity 0/1600 Matter 300/300 Energy 97/100 System Corruption 4% Temperature Cool (21) Movement Treading (160) Location -1/Access Parts ------- > --- POWER (2) -------- (None) > --- PROPULSION (4) --- Medium Treads > --- UTILITY (17) ----- Medium Storage Unit Improved Signal Interpreter Hacking Suite > --- WEAPON (2) ------- (None) > --- INVENTORY (8) ---- High-powered Disruptor Cannon Peak State ------------ > --- POWER ------------ Micro Fission Core Micro Fission Core > --- PROPULSION ------- Gyrokinetic Inverter Improved Antigrav System Improved Gyrokinetic Inverter Improved Gyrokinetic Inverter > --- UTILITY ---------- Advanced Heat Sink Large Storage Unit Enhanced Optical Array Advanced Sensor Array Improved Signal Interpreter Advanced Terrain Scanner Advanced Terrain Scan Processor Advanced ECM Suite Cloaking Device Improved Propulsion Shielding Hacking Suite System Shield Improved System Shield > --- WEAPON ----------- High-powered Disruptor Cannon > --- INVENTORY -------- Antigrav System Gyrokinetic Inverter Improved Linear Gravjet Large Storage Unit Advanced Actuator Array Improved Propulsion Shielding KE Penetrator Heavy Shock Bomb Launcher Force Lance [Rating: 115] Favorites ----------- Power Micro Fission Core Engine Cooled Ion Engine Power Core Micro Fission Core Reactor Antimatter Reactor Propulsion Aluminum Leg Treads Medium Treads Leg Aluminum Leg Wheel Compact Wheel Hover Unit Improved Gyrokinetic Inverter Flight Unit Improved VTOL Module Utility Hacking Suite Device Advanced Sensor Array Storage Medium Storage Unit Processor Improved Signal Interpreter Hackware Hacking Suite Protection Improved Propulsion Shielding Weapon Force Lance Energy Gun Gatling Laser Energy Cannon Advanced Beam Cannon Ballistic Gun Assault Rifle Launcher Missile Launcher Slashing Weapon Great Axe Piercing Weapon Force Lance Build | -11 -10 -9 -8 -7 -6 -5 -4 -3 -2 -2 -1 ------- Run | Scr Mat Mat Mat Fac Fac Fac Fac Res Res Tes Acc Slots Evolved 18 | . . 2 2 2 2 2 2 2 2 . 2 Power 1 | . . . . . 1 . . . . . . Propulsion 2 | . . 1 1 . . . . . . . . Utility 15 | . . 1 1 2 1 2 2 2 2 . 2 Weapon . | . . . . . . . . . . . . Parts Attached 187 | . 7 23 47 33 13 3 36 3 2 3 17 Power 31 | . 1 4 5 7 3 1 7 . . . 3 Engine 18 | . . 4 3 7 3 . . . . . 1 Core 7 | . 1 . 2 . . 1 3 . . . . Reactor 6 | . . . . . . . 4 . . . 2 Propulsion 53 | . 1 9 15 11 4 . 6 1 . . 6 Treads 1 | . . . . . . . . . . . 1 Leg 18 | . 1 9 6 1 . . . . . . 1 Wheel 1 | . . . . . . . . . . . 1 Hover 17 | . . . 2 2 4 . 6 1 . . 2 Flight 16 | . . . 7 8 . . . . . . 1 Utility 67 | . 2 4 16 10 4 2 20 2 2 1 4 Device 38 | . 1 3 9 6 2 . 12 1 2 1 1 Storage 5 | . 1 1 1 . . 1 . . . . 1 Processor 6 | . . . . 2 1 . 3 . . . . Hackware 9 | . . . 3 2 1 1 1 1 . . . Protection 9 | . . . 3 . . . 4 . . . 2 Artifact . | . . . . . . . . . . . . Weapon 36 | . 3 6 11 5 2 . 3 . . 2 4 Energy Gun 11 | . 1 2 6 . 1 . . . . . 1 Energy Cannon 7 | . . 3 2 . . . . . . 1 1 Ballistic Gun 5 | . 1 1 . 1 . . . . . . 2 Ballistic Cannon . | . . . . . . . . . . . . Launcher 3 | . 1 . 2 . . . . . . . . Special Weapon . | . . . . . . . . . . . . Impact Weapon . | . . . . . . . . . . . . Slashing Weapon 5 | . . . 1 3 1 . . . . . . Piercing Weapon 5 | . . . . 1 . . 3 . . 1 . Special Melee Weapon . | . . . . . . . . . . . . Unidentified Prototypes 6 | . . 1 3 . . . . . . 1 1 Parts Lost 81 | . 2 5 16 12 4 . 9 . 4 . 29 Power 10 | . . 1 1 2 1 . 1 . . . 4 Propulsion 26 | . . 1 8 5 1 . 3 . . . 8 Utility 31 | . . . 3 5 2 . 5 . 3 . 13 Weapon 14 | . 2 3 4 . . . . . 1 . 4 Highest Loss Streak 16 | . 2 3 9 5 2 . 6 . 4 . 16 Average Slot Usage (%) 89 | . 99 97 89 78 79 92 96 96 93 86 65 Engine 3 | . 4 9 4 6 7 6 . . . . . Core 4 | . 9 1 3 . . 3 5 9 8 8 4 Leg 9 | . 28 30 25 . 1 . . . . . . Hover 9 | . . . . 1 10 17 18 19 17 17 13 Flight 3 | . . . 5 22 7 . . . . . . Device 12 | . 14 14 10 3 14 11 12 15 20 21 15 Storage 7 | . 14 18 15 5 . 4 5 4 4 4 3 Processor 8 | . . . . 3 12 11 14 14 13 13 11 Hackware 12 | . . . 4 24 13 21 19 19 16 13 9 Protection 2 | . . . 3 . . . 3 4 4 4 3 Energy Gun 3 | . 3 7 12 . . . . . . . . Energy Cannon 1 | . . 12 1 . . . . . . . . Ballistic Gun 1 | . 23 2 . 2 . . . . . . . Slashing Weapon 1 | . . . 1 6 3 5 . . . . . Piercing Weapon 4 | . . . . . 6 5 9 9 7 3 2 Naked Turns . | . . . . . . . . . . . . Heaviest Build 60 | 11 18 33 43 22 24 40 60 45 50 55 52 Greatest Support 67 | 20 20 30 45 24 50 50 66 67 67 67 67 Greatest Overweight (x) 13 | . . 1 8 1 1 . 2 . 2 . 13 Average Overweight (x) . | . . . . . . . . . . . . Largest Inventory Capacity 12 | . 8 12 12 8 4 10 10 10 10 10 10 Average Capacity 9 | . 6 10 11 7 4 9 10 10 10 10 8 Most Carried 12 | . 8 12 12 8 4 10 10 10 10 10 10 Average Carried 8 | . 6 9 10 6 3 8 9 9 9 8 7 Final Capacity 12 | 6 8 12 8 4 4 10 10 10 10 10 8 Final Carried 12 | 6 7 12 8 4 4 10 10 9 9 10 2 Class Distribution -------------------- 32% | Hacker-Ninja 22% | Scavenger-Mutant 18% | Hacker-Mutant 8% | Mutant 8% | Hacker-Sprinter 7% | Hacker-Scout Dominant Class ---------------- Mutant | -10/Materials Scavenger-Mutant | -9/Materials Scavenger-Mutant | -8/Materials Hacker-Sprinter | -7/Factory Hacker-Mutant | -6/Factory Hacker-Mutant | -5/Factory Hacker-Ninja | -4/Factory Hacker-Scout | -3/Research Hacker-Ninja | -2/Research Hacker-Ninja | -2/Testing Hacker-Ninja | -1/Access Resources | -11 -10 -9 -8 -7 -6 -5 -4 -3 -2 -2 -1 ----------- Run | Scr Mat Mat Mat Fac Fac Fac Fac Res Res Tes Acc Matter Collected 2110 | 200 171 291 507 315 106 70 269 . . 73 108 Remotely . | . . . . . . . . . . . . Salvage Created 3252 | . 287 920 842 315 126 147 349 . . . 266 Parts 213 | . 20 60 52 28 11 11 20 . . . 11 Haulers Intercepted 8 | . 1 5 2 . . . . . . . . Recyclers Shooed 3 | . . 1 1 . 1 . . . . . . Parts Field Recycled . | . . . . . . . . . . . . Retrieved Matter . | . . . . . . . . . . . . Parts Self-Destructed . | . . . . . . . . . . . . Prevented . | . . . . . . . . . . . . Kills | -11 -10 -9 -8 -7 -6 -5 -4 -3 -2 -2 -1 ------- Run | Scr Mat Mat Mat Fac Fac Fac Fac Res Res Tes Acc Combat Hostiles Destroyed 71 | . 7 21 21 7 2 2 8 . . . 3 Melee 20 | . . . 1 7 2 2 8 . . . . Guns 30 | . 6 8 15 . . . . . . . 1 Cannons 17 | . . 13 2 . . . . . . . 2 AOE 4 | . 1 . 3 . . . . . . . . Classes Destroyed 12 | . 5 1 4 1 . . . . . . 1 Worker 1 | . 1 . . . . . . . . . . Builder 2 | . . . 2 . . . . . . . . Hauler 8 | . 1 5 2 . . . . . . . . Recycler 1 | . . . . . . . . . . . 1 Watcher 5 | . 1 1 . 2 1 . . . . . . Swarmer 28 | . 3 9 7 3 . . 4 . . . 2 Grunt 16 | . 4 7 4 . . . . . . . 1 Brawler 1 | . . . 1 . . . . . . . . Duelist 1 | . . . 1 . . . . . . . . Sentry 16 | . . 5 7 1 . 2 1 . . . . Hunter 1 | . . . 1 . . . . . . . . Programmer 8 | . . . . 3 2 . 3 . . . . Best Kill Streak 6 | . 5 6 5 3 1 1 4 . . . 2 Combat Bots Only 6 | . 3 6 5 3 1 1 4 . . . 2 Max Kills in Single Turn 3 | . 3 2 2 1 1 1 1 . . . 1 Gunslinging . | . . . . . . . . . . . . Exploded 2 | . 1 . 2 . . . . . . . . Melee 1 | . . . 1 1 1 1 1 . . . . Uniques/NPCs Destroyed . | . . . . . . . . . . . . Combat | -11 -10 -9 -8 -7 -6 -5 -4 -3 -2 -2 -1 -------- Run | Scr Mat Mat Mat Fac Fac Fac Fac Res Res Tes Acc Damage Taken 11296 | . 431 1128 1526 1452 286 101 1690 30 359 . 4293 Core 3361 | . 84 220 191 550 108 . 475 30 92 . 1611 Absorbed by Shields . | . . . . . . . . . . . . Core Remaining (%) 73 | 100 66 45 65 21 87 100 58 97 . 93 . Volleys Fired 170 | . 28 71 47 . . . . . . 1 23 Largest 2 | . 2 2 2 . . . . . . 1 1 Hottest 160 | . 50 136 160 . . . . . . 110 110 Shots Fired 302 | . 53 142 83 . . . . . . 1 23 Gun 211 | . 51 74 68 . . . . . . . 18 Cannon 84 | . . 68 10 . . . . . . 1 5 Launcher 7 | . 2 . 5 . . . . . . . . Special . | . . . . . . . . . . . . Kinetic 82 | . 51 19 . . . . . . . . 12 Thermal 207 | . . 123 78 . . . . . . . 6 Explosive 7 | . 2 . 5 . . . . . . . . Electromagnetic 6 | . . . . . . . . . . 1 5 Robot Hit Streak 21 | . 8 11 21 . . . . . . . 7 Robot Miss Streak 6 | . 5 5 6 . . . . . . . 3 Penetration Max . | . . . . . . . . . . . . Secondary Targets 2 | . . 1 1 . . . . . . . . Max Gunslinging Chain 1 | . . 1 1 . . . . . . . . Shots Hit Robots 285 | . 35 93 69 33 12 6 22 . . . 15 Core Hits 157 | . 16 57 44 10 4 4 11 . . . 11 Critical Hits 12 | . . 6 . . . . 5 . . . 1 Critical Kills 7 | . . 3 . . . . 3 . . . 1 Critical Parts Destroyed 4 | . . 2 . . . . 2 . . . . Melee Attacks 310 | . . . 28 62 32 20 110 14 13 2 29 Impact . | . . . . . . . . . . . . Slashing 114 | . . . 28 62 18 6 . . . . . Piercing 196 | . . . . . 14 14 110 14 13 2 29 Sneak Attacks 2 | . . . . . 1 1 . . . . . Combat Hostiles 1 | . . . . . . 1 . . . . . Follow-up Attacks 6 | . . . . 1 1 1 3 . . . . Damage Inflicted 6798 | . 538 1382 1662 1102 504 286 857 . . . 467 Guns 2502 | . 372 682 1146 . . . . . . . 302 Cannons 894 | . . 700 115 . . . . . . . 79 Explosions 537 | . 166 . 371 . . . . . . . . Melee 2834 | . . . 30 1102 504 286 857 . . . 55 Ramming 31 | . . . . . . . . . . . 31 Kinetic 656 | . 372 84 . . . . . . . . 200 Thermal 2661 | . . 1298 1261 . . . . . . . 102 Explosive 537 | . 166 . 371 . . . . . . . . Electromagnetic 79 | . . . . . . . . . . . 79 Impact . | . . . . . . . . . . . . Slashing 1505 | . . . 30 1102 213 160 . . . . . Piercing 1329 | . . . . . 291 126 857 . . . 55 Highest Corruption 15 | . . . 1 15 3 . 6 . 2 2 4 Average Corruption 3 | . . . 1 9 2 . 4 . 2 2 4 Corruption Purged . | . . . . . . . . . . . . Effects 50 | . . . 2 15 6 . 20 . . 4 3 Message Errors 8 | . . . . 2 1 . 4 . . 1 . Matter Fused 9 | . . . . 4 1 . 4 . . . . Heat Flow Errors 10 | . . . . 2 1 . 4 . . 1 2 Energy Discharges 5 | . . . . 1 . . 3 . . 1 . Parts Rejected 1 | . . . . 1 . . . . . . . Data Loss (minor) 6 | . . . 1 1 2 . 1 . . 1 . Data Loss (major) 1 | . . . . . . . 1 . . . . Misdirections 3 | . . . . 3 . . . . . . . Targeting Errors 7 | . . . 1 1 1 . 3 . . . 1 Overload Shots . | . . . . . . . . . . . . Overflow Damage 273 | . 54 1 13 61 69 . 50 . . . 25 Projectiles 8 | . . 1 7 . . . . . . . . Explosions 60 | . 54 . 6 . . . . . . . . Melee 205 | . . . . 61 69 . 50 . . . 25 Knockbacks . | . . . . . . . . . . . . Impact . | . . . . . . . . . . . . Kinetic . | . . . . . . . . . . . . Secondary . | . . . . . . . . . . . . Self-Inflicted Damage 101 | . 94 . . . . . . . . . 7 Shots 1 | . 1 . . . . . . . . . . Rammed 10 | . . . . . . . . . . . 10 Targets Rammed 10 | . . . . . . . . . . . 10 Kicked . | . . . . . . . . . . . . Crushed . | . . . . . . . . . . . . Highest Temperature 521 | . 10 300 521 256 107 . 427 . . 196 227 Average Temperature 116 | . 2 73 133 136 65 . 135 . . 87 52 Received Heat Transfer 1173 | . 153 327 495 72 . 18 27 9 . . 72 Effects 15 | . . . 5 . . . 10 . . . . Shutdowns 2 | . . . 2 . . . . . . . . Energy Bleed 3 | . . . 2 . . . 1 . . . . Interference 8 | . . . . . . . 8 . . . . Matter Decay 1 | . . . 1 . . . . . . . . Short Circuit 1 | . . . . . . . 1 . . . . Siege Activations . | . . . . . . . . . . . . Robots Corrupted . | . . . . . . . . . . . . Combat Hostiles . | . . . . . . . . . . . . Parts Fried . | . . . . . . . . . . . . Impact Corruptions . | . . . . . . . . . . . . Robots Melted . | . . . . . . . . . . . . Combat Hostiles . | . . . . . . . . . . . . Parts Melted 9 | . . 5 3 . . . 1 . . . . Heat Transferred 5417 | . . 2497 2772 . . . . . . . 148 Parts Sabotaged . | . . . . . . . . . . . . Parts Stolen . | . . . . . . . . . . . . Parts Stripped . | . . . . . . . . . . . . Power Chain Reactions . | . . . . . . . . . . . . Missiles Intercepted . | . . . . . . . . . . . . Alert | -11 -10 -9 -8 -7 -6 -5 -4 -3 -2 -2 -1 ------- Run | Scr Mat Mat Mat Fac Fac Fac Fac Res Res Tes Acc Peak Influence 560 | . 274 560 433 300 209 264 227 117 143 30 165 Initial 172 | . . 115 172 . 147 21 128 74 24 . 17 Average 138 | . 137 273 243 98 113 116 122 63 40 18 45 Maximum Alert Level 2 | . 1 2 2 1 1 1 1 . . . . Low Security (%) 75 | . 71 40 27 85 89 91 92 100 100 100 100 Level 1 21 | . 28 38 66 14 10 8 7 . . . . Level 2 3 | . . 20 5 . . . . . . . . Level 3 . | . . . . . . . . . . . . Level 4 . | . . . . . . . . . . . . Level 5 . | . . . . . . . . . . . . High Security . | . . . . . . . . . . . . Max Security . | . . . . . . . . . . . . Squads Dispatched 25 | . . 3 8 3 2 1 3 2 1 . 2 Investigation 3 | . . 2 . 1 . . . . . . . Extermination 9 | . . . . 2 2 . 3 1 . . 1 Reinforcement 7 | . . 1 2 . . 1 . 1 1 . 1 Assault . | . . . . . . . . . . . . Garrison 6 | . . . 6 . . . . . . . . Intercept . | . . . . . . . . . . . . Construction Impeded . | . . . . . . . . . . . . Haulers Reinforced . | . . . . . . . . . . . . Stealth | -11 -10 -9 -8 -7 -6 -5 -4 -3 -2 -2 -1 --------- Run | Scr Mat Mat Mat Fac Fac Fac Fac Res Res Tes Acc Distress Signals 13 | . 2 4 3 1 . . . . 1 . 2 Communications Jammed . | . . . . . . . . . . . . Distress Signals . | . . . . . . . . . . . . Times Spotted 168 | . 13 28 41 28 3 4 21 3 7 . 20 Peak Tracking Total 15 | . 5 7 8 6 1 3 5 2 6 . 15 Tactical Retreats 25 | . 1 1 6 9 . 1 3 . 1 . 3 Traps | -11 -10 -9 -8 -7 -6 -5 -4 -3 -2 -2 -1 ------- Run | Scr Mat Mat Mat Fac Fac Fac Fac Res Res Tes Acc Traps Triggered 6 | . . 1 2 . 1 . . . 2 . . Indirectly . | . . . . . . . . . . . . Trap Hack Attempts . | . . . . . . . . . . . . Triggered . | . . . . . . . . . . . . Disarmed . | . . . . . . . . . . . . Reprogrammed . | . . . . . . . . . . . . Reused . | . . . . . . . . . . . . Traps Extracted . | . . . . . . . . . . . . Installed . | . . . . . . . . . . . . Triggered . | . . . . . . . . . . . . Machines | -11 -10 -9 -8 -7 -6 -5 -4 -3 -2 -2 -1 ---------- Run | Scr Mat Mat Mat Fac Fac Fac Fac Res Res Tes Acc Machines Disabled 8 | . 2 2 1 . . 1 . . . 2 . Max in Single Turn 2 | . 2 1 1 . . 1 . . . 1 . Garrison Access 1 | . . . . . . . . . . 1 . Machines Sabotaged . | . . . . . . . . . . . . Garrisons Compromised . | . . . . . . . . . . . . Overloaded Fab Kills . | . . . . . . . . . . . . Fab Network Shutdowns . | . . . . . . . . . . . . Hacking | -11 -10 -9 -8 -7 -6 -5 -4 -3 -2 -2 -1 --------- Run | Scr Mat Mat Mat Fac Fac Fac Fac Res Res Tes Acc Machines Accessed 37 | . 2 3 4 6 6 3 9 1 1 2 . Terminals 26 | . 2 3 4 2 4 3 7 1 . . . Fabricators 3 | . . . . 2 1 . . . . . . Repair Stations 3 | . . . . 1 . . . . 1 1 . Recycling Units 1 | . . . . . 1 . . . . . . Scanalyzers 3 | . . . . 1 . . 2 . . . . Garrison Access 1 | . . . . . . . . . . 1 . Total Hacks 130 | . 3 6 12 23 19 14 42 7 1 3 . Successful 91 | . 2 4 9 20 14 9 29 3 . 1 . Failed 38 | . 1 2 3 3 5 5 12 4 1 2 . Catastrophic 2 | . . 2 . . . . . . . . . Database Lockouts 1 | . . . . . . . 1 . . . . Manual 62 | . 2 4 11 2 8 6 24 5 . . . Terminals 91 | . 3 6 12 3 11 14 35 7 . . . Fabricators 11 | . . . . 4 7 . . . . . . Repair Stations 8 | . . . . 6 . . . . 1 1 . Recycling Units 1 | . . . . . 1 . . . . . . Scanalyzers 17 | . . . . 10 . . 7 . . . . Garrison Access 2 | . . . . . . . . . . 2 . Terminal Hacks 45 | . 1 2 7 1 7 7 18 2 . . . Record 10 | . . . . . . . 9 1 . . . Part Schematic 6 | . . . . . 2 2 2 . . . . Robot Analysis 1 | . . 1 . . . . . . . . . Prototype ID Bank 4 | . 1 . 1 . . . 2 . . . . Level Access Points 4 | . . . 1 . 1 1 1 . . . . Branch Access Points 3 | . . . . 1 . 1 1 . . . . Terminal Index 3 | . . . . . 1 1 1 . . . . Fabricator Index 1 | . . . . . 1 . . . . . . Alert Level 2 | . . . . . . 1 1 . . . . Unreport Threat 3 | . . . 3 . . . . . . . . Locate Traps 2 | . . . . . . . 1 1 . . . Recall Reinforcements 1 | . . . 1 . . . . . . . . Registered Components 4 | . . 1 1 . 1 1 . . . . . Zone Layout 1 | . . . . . 1 . . . . . . Fabricator Hacks 8 | . . . . 3 5 . . . . . . Network Status 2 | . . . . 1 1 . . . . . . Load Schematic 3 | . . . . 1 2 . . . . . . Build 3 | . . . . 1 2 . . . . . . Repair Station Hacks 6 | . . . . 6 . . . . . . . Scan Component 3 | . . . . 3 . . . . . . . Repair 3 | . . . . 3 . . . . . . . Recycling Unit Hacks 1 | . . . . . 1 . . . . . . Retrieve Components 1 | . . . . . 1 . . . . . . Scanalyzer 16 | . . . . 10 . . 6 . . . . Insert Component 8 | . . . . 5 . . 3 . . . . Analyze 8 | . . . . 5 . . 3 . . . . Garrison Access Hacks 1 | . . . . . . . . . . 1 . Seal Access 1 | . . . . . . . . . . 1 . Unauthorized Hacks 14 | . 1 2 2 . 1 2 5 1 . . . Terminals 13 | . 1 2 2 . . 2 5 1 . . . Track 4 | . . 1 1 . . 1 1 . . . . Assimilate 5 | . 1 . . . . 1 2 1 . . . Botnet 1 | . . . . . . . 1 . . . . Disrupt 2 | . . 1 1 . . . . . . . . Operators 1 | . . . . . . . 1 . . . . Fabricators 1 | . . . . . 1 . . . . . . Siphon 1 | . . . . . 1 . . . . . . Repair Stations . | . . . . . . . . . . . . Recycling Units . | . . . . . . . . . . . . Scanalyzers . | . . . . . . . . . . . . Garrison Access . | . . . . . . . . . . . . Data Cores Recovered . | . . . . . . . . . . . . Used . | . . . . . . . . . . . . Hacking Detections 33 | . 2 2 4 6 5 3 7 1 1 2 . Full Trace Events 2 | . . 1 . 1 . . . . . . . Feedback Events . | . . . . . . . . . . . . Feedback Blocked . | . . . . . . . . . . . . Robot Schematics Acquired . | . . . . . . . . . . . . Robots Built . | . . . . . . . . . . . . Matter . | . . . . . . . . . . . . Time . | . . . . . . . . . . . . Total Robot Build Rating . | . . . . . . . . . . . . Part Schematics Acquired 14 | . . . . 5 2 2 5 . . . . Parts Built 3 | . . . . 1 2 . . . . . . Matter 492 | . . . . 219 273 . . . . . . Time 305 | . . . . 116 189 . . . . . . Total Part Build Rating 9 | . . . . 3 6 . . . . . . Parts Repaired 3 | . . . . 3 . . . . . . . Time 158 | . . . . 158 . . . . . . . Parts Recycled . | . . . . . . . . . . . . Recycled Matter . | . . . . . . . . . . . . Retrieved Matter . | . . . . . . . . . . . . Retrieved Components 3 | . . . . . 3 . . . . . . Parts Scanalyzed 8 | . . . . 5 . . 3 . . . . Part Schematics Acquired 8 | . . . . 5 . . 3 . . . . Parts Damaged . | . . . . . . . . . . . . Bothacking | -11 -10 -9 -8 -7 -6 -5 -4 -3 -2 -2 -1 ------------ Run | Scr Mat Mat Mat Fac Fac Fac Fac Res Res Tes Acc Used RIF Installer . | . . . . . . . . . . . . Robots Hacked . | . . . . . . . . . . . . Non-combat . | . . . . . . . . . . . . Combat . | . . . . . . . . . . . . Robot Hacks Applied . | . . . . . . . . . . . . Relay Couplers Released . | . . . . . . . . . . . . Robots Rewired . | . . . . . . . . . . . . Allies Hacked . | . . . . . . . . . . . . Hacks Repelled . | . . . . . . . . . . . . Allies | -11 -10 -9 -8 -7 -6 -5 -4 -3 -2 -2 -1 -------- Run | Scr Mat Mat Mat Fac Fac Fac Fac Res Res Tes Acc Total Allies 5 | . 1 . . . . 1 2 1 . . . Largest Group 1 | . 1 1 . . . 1 1 1 . . . Highest-Rated Group 44 | . 10 10 . . . 10 44 26 . . . Highest-Rated Ally 44 | . 10 10 . . . 10 44 26 . . . Total Orders 2 | . . 1 . . . . . 1 . . . STAY 2 | . . 1 . . . . . 1 . . . Ally Attacks . | . . . . . . . . . . . . Total Damage . | . . . . . . . . . . . . Kills . | . . . . . . . . . . . . Allies Corrupted . | . . . . . . . . . . . . Allies Melted . | . . . . . . . . . . . . Intel | -11 -10 -9 -8 -7 -6 -5 -4 -3 -2 -2 -1 ------- Run | Scr Mat Mat Mat Fac Fac Fac Fac Res Res Tes Acc Robot Analysis Total 1 | . . 1 . . . . . . . . . Derelict Logs Recovered . | . . . . . . . . . . . . Drone Launches . | . . . . . . . . . . . . Drone Recoveries . | . . . . . . . . . . . . Exploration | -11 -10 -9 -8 -7 -6 -5 -4 -3 -2 -2 -1 ------------- Run | Scr Mat Mat Mat Fac Fac Fac Fac Res Res Tes Acc Turns Passed 7953 | . 376 855 1333 775 727 345 1657 697 426 232 530 Spaces Moved 6119 | 1 194 390 893 834 521 475 1361 419 319 222 490 Core 34 | . . . 12 . . . . . . . 22 Treads 9 | . . . . . . . . . . . 9 Legs 1028 | 1 194 390 443 . . . . . . . . Wheels 2 | . . . . . . . . . . . 2 Hover 3594 | . . . 6 . 390 475 1361 419 319 222 402 Flight 1452 | . . . 432 834 131 . . . . . 55 Fastest Speed 28 | 120 120 120 29 28 32 52 52 55 55 55 40 Average Speed 63 | 120 120 137 83 34 52 52 56 55 56 55 58 Slowest Speed 700 | 120 120 150 450 112 112 52 180 55 150 55 700 Overloaded Moves . | . . . . . . . . . . . . Propulsion Burnouts . | . . . . . . . . . . . . Robots Hopped 4 | . . . 1 . . . . . . . 3 Cave-ins Triggered 1 | . . . . 1 . . . . . . . Exploration Rate (%) 23 | 2 38 48 53 21 9 13 36 14 10 23 19 Regions Visited 11 Branch Regions 1 Pre-discovered Areas . | . . . . . . . . . . . . Known Exits Taken 7 | . . . 1 . 1 1 1 1 1 1 . Unknown Exits Taken 4 | 1 1 1 . 1 . . . . . . . Scrap Searched . | . . . . . . . . . . . . Spaces Dug 145 | . . . 27 3 10 9 57 10 10 . 19 Terrain Destroyed 214 | . 40 . 56 3 10 9 57 10 10 . 19 Melee 145 | . . . 27 3 10 9 57 10 10 . 19 Projectile 1 | . . . 1 . . . . . . . . AOE 68 | . 40 . 28 . . . . . . . . Terrain Rammed . | . . . . . . . . . . . . Walls Destroyed . | . . . . . . . . . . . . Machines Disabled . | . . . . . . . . . . . . Actions | -11 -10 -9 -8 -7 -6 -5 -4 -3 -2 -2 -1 --------- Run | Scr Mat Mat Mat Fac Fac Fac Fac Res Res Tes Acc Total 9328 | . 288 576 1339 1226 927 546 2059 858 539 326 644 Wait 2378 | . 41 58 282 279 356 46 521 424 204 96 71 Move 6100 | . 193 389 890 833 520 474 1360 418 318 221 484 Hop 4 | . . . 1 . . . . . . . 3 Pick Up 76 | . 9 15 12 6 2 7 22 . 1 1 1 Fast Attach 82 | . 2 6 23 16 10 2 7 . 1 1 14 Attach 54 | . 2 7 14 10 2 . 11 2 1 2 3 Detach 22 | . 1 2 9 4 3 . . . . 1 2 Swap 51 | . 3 10 10 7 1 1 18 1 . . . Drop 96 | . 9 18 23 10 5 1 25 . . 1 4 Fire 170 | . 28 71 47 . . . . . . 1 23 Melee 282 | . . . 28 61 28 15 95 13 11 2 29 Ram 5 | . . . . . . . . . . . 5 Kick . | . . . . . . . . . . . . Crush 5 | . . . . . . . . . . . 5 Escape Stasis 3 | . . . . . . . . . 3 . . Rewire . | . . . . . . . . . . . . Trap . | . . . . . . . . . . . . Miscellaneous . | . . . . . . . . . . . . Route ------- -11/Scrapyard -10/Materials (discovered 2 exits: *Mat / [*Min]) -9/Materials (discovered 2 exits: *Mat / [*Min]) -8/Materials (discovered 3 exits: *Fac x3) -7/Factory (discovered 5 exits: *Fac / *Sto x2 / Low x2) -6/Factory (discovered 4 exits: *Fac x4) -5/Factory (discovered 6 exits: *Fac x4 / Upp x2) -4/Factory (discovered 9 exits: *Res x4 / *Upp x2 / Ext x2 / Arm) -3/Research -2/Research -2/Testing -1/Access History --------- Turn | Location | Event 1 | -11/Scrapyard | Discovered new exit (range 0) 1 | -11/Scrapyard | Entered Materials 53 | -10/Materials | Discovered new exit (range 16) 308 | -10/Materials | Build established: Mutant 317 | -10/Materials | Discovered new exit (range 16) 377 | -10/Materials | Entered another Materials area 377 | -9/Materials | Accompanied by 1 ally 377 | -9/Materials | Evolved 2 slots: Propulsion x1, Utility x1 576 | -9/Materials | Lost 3 parts (1p1n1w) 710 | -9/Materials | Discovered new exit (range 10) 822 | -9/Materials | Build established: Scavenger-Mutant 1156 | -9/Materials | Core integrity fell below 50% 1185 | -9/Materials | Discovered new exit (range 16) 1232 | -9/Materials | Entered another Materials area 1232 | -8/Materials | Evolved 2 slots: Propulsion x1, Utility x1 1857 | -8/Materials | Garrison activated, responded to threat 2181 | -8/Materials | Garrison activated, responded to threat 2241 | -8/Materials | Lost 9 parts (1p4n1u3w) 2424 | -8/Materials | Lost 4 parts (2n1u1w) 2499 | -8/Materials | Identified exit to Factory 2565 | -8/Materials | Entered Factory 2565 | -7/Factory | Evolved 2 slots: Utility x2 2575 | -7/Factory | Repaired Imp. VTOL Module 2613 | -7/Factory | Repaired Cesium-ion Thruster 2678 | -7/Factory | Repaired Imp. VTOL Module 2916 | -7/Factory | Lost 4 parts (1p1n2u) 2931 | -7/Factory | Core integrity fell below 50% 3116 | -7/Factory | Crushed by falling debris 3116 | -7/Factory | System corruption reached 10% 3166 | -7/Factory | Lost 5 parts (1p2n2u) 3185 | -7/Factory | Fabricated Imp. VTOL Module (x1) 3284 | -7/Factory | Discovered new exit (range 5) 3286 | -7/Factory | Identified exit to Storage 3286 | -7/Factory | Identified exit to Lower Caves 3333 | -7/Factory | Discovered new exit (range 10) 3340 | -7/Factory | Entered another Factory area 3340 | -6/Factory | Evolved 2 slots: Power x1, Utility x1 3470 | -6/Factory | Discovered new exit (range 4) 3498 | -6/Factory | Identified exit to Factory 3586 | -6/Factory | Build established: Hacker-Mutant 3661 | -6/Factory | Fabricated Imp. VTOL Module (x1) 4032 | -6/Factory | Fabricated Hacking Suite (x1) 4067 | -6/Factory | Entered another Factory area 4067 | -5/Factory | Evolved 2 slots: Utility x2 4244 | -5/Factory | Identified exit to Upper Caves 4244 | -5/Factory | Identified exit to Factory 4412 | -5/Factory | Entered another Factory area 4412 | -4/Factory | Accompanied by 1 ally 4412 | -4/Factory | Evolved 2 slots: Utility x2 4641 | -4/Factory | Spotted B-86 Titan 4770 | -4/Factory | Build established: Hacker-Ninja 5062 | -4/Factory | Identified exit to Upper Caves 5062 | -4/Factory | Identified exit to Extension 5062 | -4/Factory | Identified exit to Armory 5062 | -4/Factory | Identified exit to Research 5287 | -4/Factory | Spotted B-86 Titan 5665 | -4/Factory | P-70 Sage assimilated allied Technician 7a 5715 | -4/Factory | Central database locked down 5826 | -4/Factory | Lost 6 parts (1p1n4u) 6069 | -4/Factory | Entered Research 6069 | -3/Research | Evolved 2 slots: Utility x2 6278 | -3/Research | Build established: Hacker-Scout 6748 | -3/Research | Discovered new exit (range 6) 6766 | -3/Research | Identified exit to Research 6766 | -3/Research | Entered another Research area 6766 | -2/Research | Evolved 2 slots: Utility x2 6855 | -2/Research | Build established: Hacker-Ninja 7170 | -2/Research | Discovered new exit (range 16) 7191 | -2/Research | Identified exit to Testing 7192 | -2/Research | Entered Testing 7219 | -2/Testing | Lost 4 parts (3u1w) 7321 | -2/Testing | Found Prototype Energy Cannon 7321 | -2/Testing | Identified Hpw. Disruptor Cannon 7412 | -2/Testing | Discovered new exit (range 22) 7423 | -2/Testing | Identified exit to Access 7424 | -2/Testing | Entered Access 7424 | -1/Access | Evolved 2 slots: Utility x2 7753 | -1/Access | Spotted B-99 Colossus 7840 | -1/Access | Core integrity fell below 50% 7867 | -1/Access | Lost 16 parts (2p3n9u2w) 7928 | -1/Access | Core integrity fell below 20% 7954 | -1/Access | Destroyed by S-43 Plague with Heavy Machine Gun Last Messages --------------- 07942_ Penetrated by Slug. 07942_ Critical hit. 07944_ Slammed into H-88 Terminator. 07945_ Penetrated by Slug. 07946_ Slammed into H-88 Terminator. 07946_ Penetrated by Slug. 07946_ Hvy. Armor Plating destroyed. 07947_ Slammed into H-88 Terminator. 07949_ System corrupted: Heat flow error (+279). 07949_ Penetrated by Slug. 07949_ Slammed into H-88 Terminator. 07949_ K-01 Serf collects debris. 07950_ Acquired 20 matter. 07950_ Slammed into P-80 Master. 07951_ Penetrated by Slug. 07951_ K-01 Serf cleans the Signal Shield. 07952_ Slug penetrates Wall. 07952_ Imp. Propulsion Shielding destroyed. 07954_ K-01 Serf destroyed. 07954_ P-80 Master resets P-80 Master, system corruption cleaned. Map ----- +----------------------------------------------------+ | ????????????????????????????????????????????? | | ????????????????????????????????????????????? | | ????????????????????????????????????????????? | | ????????????????????????????????????????????? | | ????????????????????????????????????????????? | | ????????????????????????????????????????????? | | ????????????????????????????????????????????? | | ????????????????????????????????????????????? | | ????????????????????????????????????????????? | | ????????????#???????????????????????????????? | | ????????????# ??????????????????????????????? | | ????????????# ??????????????????????????????? | | ????????##### ??????????????????????????????? | | ???????? #######???????????????????????? | | ???????? ???????????????????????? | | ???????? ???????????????????????? | | ??????? ???????????????????????? | | ??????? ???????????????????????? | | ????????" """ ???????????????????????? | | ?????????"""" ????????????????????????? | | ??"??????"""" ????????????????????????? | | ?"T ? """"" ????????????????????????? | | ?"" """"""" ????????????????????????? | | ?"" """"""" #????????????????????????? | | ?"" """ """ #########????????????????? | | #"" #@h%!= #????????????? ? | | #" #%h%==* #??########### # | | ??# %p%s!! ! #? # | | ??# %#########? # | | ??# =#????????? # | | ??# #????????? # | | ??# #????????? ? | | ??# ##???????? ? | | ??# #???????? " | | ??########### #???????? """ ?? | | ???# [ # #???????? G | | ???# # #???????? """ | | ???# # ######### " | | ???# # | | ???# # | | ???# #%= | | ???# # ### | | ???# + #????????#### | | ???# # ######## ##### #??????????????? | | ???########## #??????# #???# #??????????????? | | ???????????? ??#?### #??## #??????????????? | | ???????????# #?????# #??## #??????????????? | | ???????????# ##?####/###?# #?#????????????? | | ?????????? ## #?#?? #### #??#???????????? | | ?????????? ?# ##?? ?? ##?# #?##???????????? | +----------------------------------------------------+ Best States ------------- Heat Dissipation 71 Energy Generation 38 Energy Capacity 395 Matter Stores 300 Matter Capacity 300 Sight Range 22 Robot Scan Range 20 Terrain Scan Range 20 Terrain Scan Density 210 ECM Strength 3 Jamming Range 16 Cloak Strength 2 Power Amplification 20 Armor Coverage 600 Resistance: KI 20 Propulsion Shielding 66 Reclamation Efficiency 25 Melee Speed Boost 20 Evasion (%) 64 Melee Accuracy 5 Armor Integrity Analysis 50 Recoil Reduction 1 Offensive Hacking 40 Defensive Hacking 22 Item Schematics ----------------- Imp. VTOL Module | -7/Factory | Scanalyzed Adv. Sensor Array | -7/Factory | Scanalyzed Deuterium Engine | -7/Factory | Scanalyzed Hcp. Battery | -7/Factory | Scanalyzed Actuator Array | -7/Factory | Scanalyzed Hacking Suite | -6/Factory | Hacked Matter Neutralizer | -6/Factory | Hacked Adv. Plasma Cannon | -5/Factory | Hacked Cmb. Gravmag System | -5/Factory | Hacked Gyrokinetic Inverter | -4/Factory | Scanalyzed Lgt. Deuterium Engine | -4/Factory | Scanalyzed Field Propulsion Array | -4/Factory | Scanalyzed Imp. Cloaking Device | -4/Factory | Hacked Corruption Screen | -4/Factory | Hacked Robot Schematics ------------------ None Fabricated ------------ Imp. VTOL Module | x1 | -7/Factory Imp. VTOL Module | x1 | -6/Factory Hacking Suite | x1 | -6/Factory Alien Tech Used ----------------- None Achievements -------------- None Challenges ------------ None Game ------ Seed CloakLobotomyMinigun Manual? 0 Play Time 02:15:02 Cumulative 89.1 hours Start 2021.02.24 @ 18:24:46 End 2021.02.24 @ 20:46:50 Sessions 1 Manual Loads 0 Difficulty Rogue Special Mode None Game No. 162 Rogue 162 Adventurer 0 Explorer 0 Win Type - Total 0 Types 0/0/0/0/0/0/0/0/0 Lore% 57 Gallery% 58 Achievement% 43 Wizard Run 0 Options --------- ASCII 0 Keyboard 1 Movement Numpad Keybinds 0 Fullscreen 2 Font 18/Terminus Map View 76x50 Tactical HUD 1 Map Filters NONE Filters NONE Steam 1 RUN: 47695cd4-f34e-4681-a9b6-044f25fac1e7